Workbook

Sheet 1. Forside
A1: HOFOR Spildevand Rødovre A/S
D8: Bilag A
D13: Indholdsfortegnelse
C16: Fane nr. 2 | D16: Samlet prisloft
C17: Fane nr. 3 | D17: Driftsomkostninger
C18: Fane nr. 4 | D18: Historiske investeringer
C19: Fane nr. 5 | D19: Gennemførte investeringer
C20: Fane nr. 6 | D20: Korrektion investeringer
C21: Fane nr. 7 | D21: Planlagte investeringer
C22: Fane nr. 8 | D22: 1:1 omkostninger
C23: Fane nr. 9 | D23: Miljø- og servicemål
C24: Fane nr. 10 | D24: Klimatilpasning
C25: Fane nr. 11 | D25: Nettofinansielle poster
C26: Fane nr. 12 | D26: Over- eller underdækning
C27: Fane nr. 13 | D27: Kontrol med indtægtsrammen og oversigt over ekstraordinære effektiviseringsgevinster

Sheet 2. Samlet prisloft
A1: ='1. Forside'!A1 -> HOFOR Spildevand Rødovre A/S
B4: Fane 2. Samlet prisloft for 2015
B6: Driftsomkostninger
B7: Driftsomkostninger i prisloftet for 2014 | C7: ='3. Driftsomkostninger'!C21 -> 8394491.689 | D7: kr.
B8: Bortfald af væsentlige omkostninger | C8: =-'3. Driftsomkostninger'!C26 -> 0 | D8: kr.
B9: Korrektion for prisudviklingen 2014-2015 | C9: ='3. Driftsomkostninger'!C32 -> 6715.593351 | D9: kr.
B10: Forhøjelse til effektivt niveau iht. benchmarkingen | C10: ='3. Driftsomkostninger'!C38 -> 0 | D10: kr.
B11: Korrektion for generelt effektiviseringskrav | C11: =-'3. Driftsomkostninger'!C44 -> -36935.76343 | D11: kr.
B12: Korrektion for individuelt effektiviseringskrav | C12: =-'3. Driftsomkostninger'!C53 -> -419724.5844 | D12: kr.
B13: Driftsomkostninger i alt | C13: =SUM(C7:C12) -> 7944546.934 | D13: kr. | E13: =C13 -> 7944546.934 | F13: kr.
B14: Investeringer
B15: Tillæg for historiske investeringer | C15: ='4. Historiske investeringer'!C9 -> 11029514.9 | D15: kr.
B16: Tillæg for gennemførte investeringer i 2011-2013 | C16: ='5. Gennemførte investeringer'!F20 -> 989695.81 | D16: kr.
B17: Korrektion af tillæg for planlagte investeringer vedrørende 2013 | C17: ='6. Korrektion investeringer'!C10 -> 153528.46 | D17: kr.
B18: Tillæg for planlagte investeringer i 2014 og 2015 | C18: ='7. Planlagte investeringer'!F26 -> 1120036 | D18: kr.
B19: Investeringstillæg i alt | C19: =SUM(C15:C18) -> 13292775.17 | D19: kr. | E19: =C19 -> 13292775.17 | F19: kr.
B20: Øvrige omkostninger mv.
B21: Tillæg for 1:1 omkostninger i 2015 | C21: ='8. 1-1 omkostninger'!C11 -> 15221939 | D21: kr.
B22: Tillæg vedr. revisorerklæringer og DANVA/FVD-kontingent | C22: ='8. 1-1 omkostninger'!C19 -> 55000 | D22: kr.
B23: Korrektion ift. faktiske 1:1 omkostninger i 2013 | C23: ='8. 1-1 omkostninger'!C25 -> -2397081 | D23: kr.
B24: Tillæg for driftsomkostninger til miljø- og servicemål i 2015 | C24: ='9. Miljø- og servicemål'!C9 -> 200000 | D24: kr.
B25: Korrektion ift. faktiske driftsomkostninger til miljø- og servicemål i 2013 | C25: ='9. Miljø- og servicemål'!C16 -> 0 | D25: kr.
B26: Tillæg for driftsomkostninger til medfinansiering af klimatilpasningsprojekter i 2015 | C26: ='10. Klimatilpasning'!C10 -> 594473 | D26: kr.
B27: Korrektion ift. faktiske omkostninger til medfinansiering af klimatilpasningsprojekter i 2013 | C27: ='10. Klimatilpasning'!C17 -> -199000 | D27: kr.
B28: Tillæg/fradrag for nettofinansielle poster i 2015 | C28: ='11. Nettofinansielle poster'!C9 -> 79500 | D28: kr.
B29: Korrektion ift. faktiske nettofinansielle poster i 2013 | C29: ='11. Nettofinansielle poster'!C16 -> 138891 | D29: kr.
B30: Øvrige omkostninger mv. i alt | C30: =SUM(C21:C29) -> 13693722 | D30: kr. | E30: =C30 -> 13693722 | F30: kr.
B31: Historisk over- eller underdækning
B32: Tillæg/fradrag for over- eller underdækning til og med 2010 | C32: ='12. Over- eller underdækning'!C11 -> -1503436.503 | D32: kr. | E32: =C32 -> -1503436.503 | F32: kr.
B33: Korrektion i forhold til tidligere indtægtsramme
B34: Korrektion for overholdelse af indtægtsramme i prisloft 2013 | C34: ='13. Kontrol med indtægtsrammen'!E27 -> -4233416.443 | D34: kr. | E34: =C34 -> -4233416.443 | F34: kr.
B35: Samlet prisloft
B36: Indtægtsramme i 2015 | E36: =SUM(E13:E34) -> 29194191.16 | F36: kr.
B37: Debiteret vandmængde i 2013 | E37: 1764637 | F37: m3
B38: Prisloft 2015 | E38: =E36/E37 -> 16.54402076 | F38: kr./m3

Sheet 3. Driftsomkostninger
A1: ='1. Forside'!A1 -> HOFOR Spildevand Rødovre A/S
B4: Fane 3. Driftsomkostninger
B6: Driftsomkostningerne i prisloftet for 2014
B7: Korrigerede driftsomkostninger i prisloftet for 2013 (DOiPL 2013) | C7: 7980103.883 | D7: kr.
B8: Midlertidigt tillæg iht. § 8, stk. 5 | C8: 2123054.288 | D8: kr.
B9: Prisfremskrivning 1,5 pct. | C9: =0.015*SUM(C7:C8) -> 151547.3726 | D9: kr.
B10: Generelt effektiviseringskrav (0 pct.) | C10: 0 | D10: kr.
B11: Individuelt effektiviseringskrav | C11: -131635 | D11: kr.
B12: Tillæg iht. § 8, stk. 2, pkt. 1 | C12: 4689531 | D12: kr.
B13: Bortfald af midlertidigt tillæg iht. § 8, stk. 5 (inkl. prisfremskrivning) | C13: =-1.015*2123054 -> -2154899.81 | D13: kr.
B14: Driftsomkostningerne i prisloftet for 2014 (DOiPL 2014) (korrigeret for bortfald af midlertidigt tillæg) | C14: =SUM(C7:C13) -> 12657701.73 | D14: kr.
B17: Forskel i § 8, stk. 2, pkt. 1 - tillæg
B18: Godkendt tillæg i PL2014 angivet i 2014-niveau | C18: 4689531 | D18: kr.
B19: Godkendt tillæg i PL2015 angivet i 2014-niveau | C19: 426320.9545 | D19: kr.
B20: Forskel | C20: =C19-C18 -> -4263210.045 | D20: kr.
B21: Korrigerede driftsomkostninger i prisloftet for 2014 | C21: =C14+C20 -> 8394491.689 | D21: kr.
B24: Korrektion for forventet bortfald af væsentlige omkostninger
B25: Selskabets indberettede bortfald af væsentlige omkostninger inden 2015 | C25: 0 | D25: kr.
B26: Korrektion for forventet bortfald | C26: =SUM(C25:C25) -> 0 | D26: kr.
B29: Korrektion for prisudviklingen fra 2014-2015
B30: Driftsomkostningerne i prisloftet for 2014 | C30: =C21-C26 -> 8394491.689 | D30: kr.
B31: Prisudvikling 2014 - 2015 | C31: 0.08 | D31: pct.
B32: Korrektion for prisudvikling | C32: =C30*(C31/100) -> 6715.593351 | D32: kr.
B35: Eventuel forhøjelse til effektivt niveau iht. benchmarkingen
B36: Selskabets effektive driftsomkostninger iht. benchmarkingen | C36: 4666497.738 | D36: kr.
B37: Selskabets pristalskorrigerede driftsomkostninger i 2015-niveau | C37: =C30+C32 -> 8401207.282 | D37: kr.
B38: Eventuel forhøjelse til effektivt niveau | C38: =IF(C37>C36,0,C36-C37) -> 0 | D38: kr.
B41: Korrektion for generelt effektiviseringskrav
B42: Driftsomkostningerne i prisloftet for 2014 | C42: =C30 -> 8394491.689 | D42: kr.
B43: Generelt effektiviseringskrav | C43: 0.44 | D43: pct.
B44: Endeligt generelt effektiviseringskrav | C44: =C42*(C43/100) -> 36935.76343 | D44: kr.
B47: Korrektion for individuelt effektiviseringskrav
B48: Rå effektiviseringspotentiale | C48: 4060415.463 | D48: kr.
B49: Effektiviseringspotentiale efter eventuel korrektion for særlige forhold | C49: 3727993.606 | D49: kr.
B50: Effektiviseringspotentiale efter forsigtighedshensyn | C50: 2649301.468 | D50: kr.
B51: Effektiviseringspotentiale efter eventuel korrektion for sammensætning af signifikante costdrivere | C51: 2649301.468 | D51: kr.
B52: Umiddelbart effektiviseringskrav | C52: =C51/4 -> 662325.367 | D52: kr.
B53: Endeligt individuelt effektiviseringskrav | C53: =IF(C52>0.05*C30,0.05*C30,IF(C52<0.01*C30,0,C52)) -> 419724.5844 | D53: kr.

Sheet 4. Historiske investeringer
A1: ='3. Driftsomkostninger'!A1 -> HOFOR Spildevand Rødovre A/S
B4: Fane 4. Historiske investeringer
B6: Tillæg for historiske investeringer
B7: Værdi af selskabets materielle anlægsaktiver pr. 1. januar 2010 | C7: 305975742.9 | D7: kr.
B8: Den årlige standardafskrivning på de materielle anlægsaktiver iht. POLKA | C8: 11029514.9 | D8: kr.
B9: Tillæg i alt i 2015 | C9: =C8 -> 11029514.9 | D9: kr.

Sheet 5. Gennemførte investeringer
A1: ='4. Historiske investeringer'!A1 -> HOFOR Spildevand Rødovre A/S
B4: Fane 5. Gennemførte investeringer i 2010 - 2013
B6: Tillæg for gennemførte investeringer i 2013
B7: Beskrivelse af investeringen | C7: Årstal | D7: Std. levetid (år) | E7: Anskaffelses-pris (kr.) | F7: Afskrivning
B8: Kælder | C8: 2013 | D8: 75 | E8: 897000 | F8: =E8/D8 -> 11960 | G8: kr.
B9: Kælder (< 7 m2) | C9: 2013 | D9: 75 | E9: 1728072 | F9: =E9/D9 -> 23040.96 | G9: kr.
B10: Mindre renseanlæg < 5.000 PE uden mulighed for opdeling | C10: 2013 | D10: 40 | E10: 572604 | F10: 14315.1 | G10: kr.
B11: Pumpeinstallation Miljøklasse A (1.000-1.500 l/s) - Mek/EL | C11: 2013 | D11: 20 | E11: 18303 | F11: 915.15 | G11: kr.
B12: Pumpeinstallation Miljøklasse A (300-600 l/s) - Mek/EL | C12: 2013 | D12: 20 | E12: 1262920 | F12: 63146 | G12: kr.
B13: Pumpeinstallation Miljøklasse B (300-600 l/s) - SRO | C13: 2013 | D13: 10 | E13: 82000 | F13: 8200 | G13: kr.
B14: Pumpestationer m. overbygning (< 20 m2), Konstruktioner | C14: 2013 | D14: 50 | E14: 55192 | F14: 1103.84 | G14: kr.
B15: Pumpestationer m. overbygning (< 20 m2), SRO | C15: 2013 | D15: 10 | E15: 715754 | F15: 71575.4 | G15: kr.
B16: Strømpeforing Ø 500 mm < Ledningsnet = Ø 800 mm | C16: 2013 | D16: 50 | E16: 4368524 | F16: 87370.48 | G16: kr.
B17: Oversvømmelseskort | C17: 2013 | D17: 5 | E17: 191754 | F17: 38350.8 | G17: kr.
B18: Tillæg for 2013 | F18: =SUM(F8:F17) -> 319977.73 | G18: kr.
B19: Tillæg for 2010 - 2012 | F19: 669718.08 | G19: kr.
B20: Samlet tillæg for gennemførte investeringer | F20: =F18+F19 -> 989695.81 | G20: kr.

Sheet 6. Korrektion investeringer
A1: ='5. Gennemførte investeringer'!A1 -> HOFOR Spildevand Rødovre A/S
B4: Fane 6. Korrektion af tillæg for planlagte investeringer
B6: Korrektion af tillæg for planlagte investeringer vedr. 2013
B7: Tillæg for planlagte investeringer i 2013 i prisloft 2013 | C7: 356014 | D7: kr.
B8: Tillæg for planlagte investeringer i 2013 i prisloft 2014 | C8: 130413 | D8: kr.
B9: Selskabets faktiske afskrivninger på gennemførte investeringer i 2013 | C9: ='5. Gennemførte investeringer'!F18 -> 319977.73 | D9: kr.
B10: Korrektion af tillæg for planlagte investeringer vedr. 2013 | C10: =C9-C7+C9-C8 -> 153528.46 | D10: kr.

Sheet 7. Planlagte investeringer
A1: ='6. Korrektion investeringer'!A1 -> HOFOR Spildevand Rødovre A/S
B4: Fane 7. Planlagte investeringer
B6: Tillæg for planlagte investeringer i 2014 og 2015
B7: Beskrivelse af investeringen | C7: Årstal | D7: Std. levetid (år) | E7: Anskaffelses-pris (kr.) | F7: Afskrivning
B8: Forsinkelsesbassiner, lukkede med automatisk rensning og SRO Miljøklasse A (500-1.000 m3) - Konstruktioner | C8: 2014 | D8: 75 | E8: 250000 | F8: =E8/D8 -> 3333.333333 | G8: kr.
B9: Overbygning | C9: 2014 | D9: 75 | E9: 2000000 | F9: =E9/D9 -> 26666.66667 | G9: kr.
B10: Pumpestationer m. overbygning (< 20 m2), Mek/EL | C10: 2014 | D10: 20 | E10: 4000000 | F10: =E10/D10 -> 200000 | G10: kr.
B11: Pumpestationer m. overbygning (< 20 m2), SRO | C11: 2014 | D11: 10 | E11: 540000 | F11: 54000 | G11: kr.
B12: Ø 200 mm < Ledningsnet = Ø 500 mm | C12: 2014 | D12: 75 | E12: 300000 | F12: 4000 | G12: kr.
B13: Ø 500 mm < Ledningsnet = Ø800 mm | C13: 2014 | D13: 75 | E13: 13045000 | F13: 173933.3333 | G13: kr.
B14: Stik | C14: 2014 | D14: 75 | E14: 200000 | F14: 2666.666667 | G14: kr.
B15: Strømpeforing Ø 200 mm < Ledningsnet = Ø 500 mm | C15: 2014 | D15: 50 | E15: 3000000 | F15: 60000 | G15: kr.
B16: Forsinkelsesbassiner, lukkede med automatisk rensning og SRO Miljøklasse A (større end 10.000 m3) - Konstruktioner | C16: 2015 | D16: 75 | E16: 1800000 | F16: 24000 | G16: kr.
B17: Kælder | C17: 2015 | D17: 75 | E17: 225000 | F17: 3000 | G17: kr.
B18: Ledningsnet > Ø 1600 mm (rørbassiner og transportledninger) | C18: 2015 | D18: 75 | E18: 11430000 | F18: 152400 | G18: kr.
B19: Pumpeinstallation Miljøklasse B (1.000-1.500 l/s) - Mek/EL | C19: 2015 | D19: 20 | E19: 6525000 | F19: 326250 | G19: kr.
B20: Pumpeinstallation Miljøklasse B (1.000-1.500 l/s) - SRO | C20: 2015 | D20: 10 | E20: 9884 | F20: 988.4 | G20: kr.
B21: Stik | C21: 2015 | D21: 75 | E21: 180000 | F21: 2400 | G21: kr.
B22: GIS Datasystem | C22: 2015 | D22: 5 | E22: 105300 | F22: 21060 | G22: kr.
B23: Ø 1200 mm < Ledningsnet = Ø 1600 mm | C23: 2015 | D23: 75 | E23: 4900320 | F23: 65337.6 | G23: kr.
B24: Tillæg for 2014 | F24: =SUMIF(C8:C23,"2014",F8:F23) -> 524600 | G24: kr.
B25: Tillæg for 2015 | F25: =SUMIF(C8:C23,"2015",F8:F23) -> 595436 | G25: kr.
B26: Tillæg i alt | F26: =F24+F25 -> 1120036 | G26: kr.

Sheet 8. 1-1 omkostninger
A1: ='7. Planlagte investeringer'!A1 -> HOFOR Spildevand Rødovre A/S
B4: Fane 8. 1:1 omkostninger
B6: Tillæg for budgetterede 1:1 omkostninger i 2015
B7: Betaling til Forsyningssekretariatet | C7: 33000 | D7: kr.
B8: Køb af varer og tjenesteydelser hos et andet prisloftreguleret vandselskab | C8: 14173939 | D8: kr.
B9: Tjenestemandspensioner | C9: 15000 | D9: kr.
B10: Selskabsskat | C10: 1000000 | D10: kr.
B11: Tillæg i alt | C11: =SUM(C7:C10) -> 15221939 | D11: kr.
B16: Tillæg for budgetterede nødvendige udgifter til revisorerklæringer samt ordinært medlemskab af DANVA og FVD i 2015
B17: Betaling for ordinært medlemskab af DANVA/FVD | C17: 40000 | D17: kr.
B18: Betaling for revisorerklæringer | C18: 15000 | D18: kr.
B19: Tillæg i alt | C19: =SUM(C17:C18) -> 55000 | D19: kr.
B22: Korrektion af tillæg for faktiske 1:1 omkostninger (inkl. revisorerklæringer og ordinært medlemskab af DANVA/FVD) i 2013
B23: Selskabets faktiske 1:1 omkostninger mv. i 2013, jf. reguleringsregnskabet | C23: 13108418 | D23: kr.
B24: Tillæg for budgetterede 1:1 omkostninger mv. i prisloft 2013 | C24: 15505499 | D24: kr.
B25: Korrektion af tillæg for budgetterede 1:1 omkostninger mv. i 2013 | C25: =C23-C24 -> -2397081 | D25: kr.

Sheet 9. Miljø- og servicemål
A1: ='8. 1-1 omkostninger'!A1 -> HOFOR Spildevand Rødovre A/S
B4: Fane 9. Driftsomkostninger til miljø- og servicemål
B6: Tillæg for budgetterede driftsomkostninger til miljø- og servicemål i 2015
B7: Dokumenteret Spildevandssikkerhed | C7: 80000 | D7: kr.
B8: Vand- og Energiværksted | C8: 120000 | D8: kr.
B9: Tillæg i alt | C9: =SUM(C7:C8) -> 200000 | D9: kr.
B13: Korrektion af tillæg for faktiske driftsomkostninger til miljø- og servicemål i 2013
B14: Selskabets faktiske driftsomkostninger til miljø- og servicemål i 2013, jf. reguleringsregnskabet | C14: 0 | D14: kr.
B15: Tillæg for budgetterede driftsomkostninger til miljø- og servicemål i prisloft 2013 | C15: 0 | D15: kr.
B16: Korrektion af tillæg for budgetterede driftsomkostninger til miljø- og servicemål i 2013 | C16: =C14-C15 -> 0 | D16: kr.

Sheet 10. Klimatilpasning
A1: ='9. Miljø- og servicemål'!A1 -> HOFOR Spildevand Rødovre A/S
B4: Fane 10. Medfinansiering af klimatilpasningsprojekter
B7: Tillæg for budgetterede omkostninger til medfinansiering af klimatilpasningsprojekter i 2015
B8: Lørenskogvej (godkendt i PL2013) | C8: 209200 | D8: kr.
B9: Fortvej (godkendt i PL2014) | C9: 385273 | D9: kr.
B10: Tillæg i alt | C10: =SUM(C8:C9) -> 594473 | D10: kr.
B14: Korrektion af tillæg for faktiske omkostninger til medfinansiering af klimatilpasningsprojekter i 2013
B15: Selskabets faktiske driftsomkostninger til klimatilpasningsprojekter i 2013, jf. reguleringsregnskabet | C15: 0 | D15: kr.
B16: Tillæg for budgetterede driftsomkostninger til klimatilpasningsprojekter i prisloft 2013 | C16: 199000 | D16: kr.
B17: Korrektion af tillæg for budgetterede omkostninger til klimatilpasningsprojekter i 2013 | C17: =C15-C16 -> -199000 | D17: kr.

Sheet 11. Nettofinansielle poster
A1: ='10. Klimatilpasning'!A1 -> HOFOR Spildevand Rødovre A/S
B4: Fane 11. Nettofinansielle poster
B6: Tillæg for budgetterede nettofinansielle poster i 2015
B7: Budgetterede renteudgifter og gebyrer i 2015 | C7: 506500 | D7: kr.
B8: Budgetterede renteindtægter i 2015 | C8: 427000 | D8: kr.
B9: Tillæg/fradrag i alt | C9: =C7-C8 -> 79500 | D9: kr.
B13: Korrektion af tillæg for faktiske nettofinansielle poster i 2013
B14: Selskabets faktiske nettofinansielle poster i 2013, jf. reguleringsregnskabet | C14: -237700 | D14: kr.
B15: Tillæg for budgetterede nettofinansielle poster i prisloft 2013 | C15: -376591 | D15: kr.
B16: Korrektion af tillæg for budgetterede nettofinansielle poster i 2013 | C16: =C14-C15 -> 138891 | D16: kr.

Sheet 12. Over- eller underdækning
A1: ='11. Nettofinansielle poster'!A1 -> HOFOR Spildevand Rødovre A/S
B4: Fane 12. Over- eller underdækning til og med 2010
B6: Tillæg/fradrag for over- eller underdækning til og med 2010
B7: Opgjort over- eller underdækning per 31. december 2010 | C7: -15103029 | D7: kr.
B8: Heraf beløb indregnet i prislofterne for 2011 - 2014 | C8: -6082409.984 | D8: kr.
B9: Endnu ikke indregnet over- eller underdækning | C9: =C7-C8 -> -9020619.016 | D9: kr.
B10: Resterende indregningsperiode (fastsat i prisloftet for 2012) | C10: 6 | D10: år
B11: Tillæg/fradrag i alt | C11: =IF(C7=0,0,C9/C10) -> -1503436.503 | D11: kr.

Sheet 13. Kontrol med indtægtsrammen
A1: ='12. Over- eller underdækning'!A1 -> HOFOR Spildevand Rødovre A/S
B4: Fane 13. Korrektion for overholdelse af indtægtsrammen i prisloftet for 2013
B6: Samlet opgørelse vedrørende overholdelse af indtægtsrammen i prisloftet for 2013
B7: Indtægtsramme i prisloftet for 2013 | E7: 38634839.56 | F7: kr.
B8: Ikke anvendt likviditet vedrørende investeringer i 2013
B9: Tillæg for historiske investeringer | C9: 11029514.9 | D9: kr.
B10: Tillæg for gennemførte investeringer i 2011 | C10: 446077 | D10: kr.
B11: Korrektion af tillæg for planlagte investeringer i 2011 | C11: -38676 | D11: kr.
B12: Tillæg for planlagte investeringer i 2012 og 2013 | C12: 592014 | D12: kr.
B13: Indtægter fra tilslutningsbidrag | D13: kr.
B14: Indtægter fra salg af anlægsaktiver | D14: kr.
B15: Erstatninger vedr. anlægsaktiver mv. | D15: kr.
B16: Ekstraordinær effektiviseringsgevinst anvendt til investeringer | D16: kr.
B17: Udgifter til investeringer | C17: -12028930 | D17: kr.
B18: Ikke anvendt likviditet vedr. investeringer i alt | C18: =SUM(C9:C17) -> -0.1035815552 | D18: kr. | E18: =IF(C18<0,0,-C18) -> 0 | F18: kr.
B19: Ekstraordinære effektiviseringsgevinster anvendt til takstnedsættelse
B20: Ekstraordinær effektiviseringsgevinst anvendt til takstnedsættelse | D20: kr. | E20: =-C20 -> 0 | F20: kr.
B21: Korrektion af ikke opkrævet tillæg fra 2011 i prisloft 2013
B22: Korrektion af ikke opkrævet tillæg fra 2011 i prisloft 2013 | D22: kr. | E22: =-C22 -> 0 | F22: kr.
B23: Indtægter fra primære aktiviteter mv.
B24: Indtægter fra kubikmetertakster, faste takster, særbidrag, målergebyrer samt andre takster og gebyrer | C24: 42868256 | D24: kr.
B25: Andre indtægter i prisloftåret, som selskabet har opnået i forbindelse med eller som følge af selskabets primære aktiviteter | D25: kr.
B26: Indtægter fra primære aktiviteter mv. i alt | C26: =SUM(C24:C25) -> 42868256 | D26: kr. | E26: =-C26 -> -42868256 | F26: kr.
B27: Tillæg/fradrag i prisloftet for 2015 i alt | E27: =E7+E18+E20+E22+E26 -> -4233416.443 | F27: kr.
B31: Oversigt over ekstraordinære effektiviseringsgevinster
C33: 2012 | E33: 2013 | G33: 2014 | I33: 2015 | K33: 2016
B34: Indhentet ekstraordinær effektiviseringsgevinst | C34: 0 | D34: kr. | E34: 1140980 | F34: kr. | H34: kr. | J34: kr. | L34: kr.
B35: Gevinst anvendt til investeringer | C35: 0 | D35: kr. | E35: 0 | F35: kr. | H35: kr. | J35: kr. | L35: kr.
B36: Gevinst anvendt til takstnedsættelse | C36: 0 | D36: kr. | E36: 0 | F36: kr. | H36: kr. | J36: kr. | L36: kr.
B37: Korrektion for effektiviseringsgevinst der ikke er anvendt inden 4 år | C37: 0 | D37: kr. | E37: 0 | F37: kr. | H37: kr. | J37: kr. | K37: =IF(C38>SUM(E35:I36),C38-SUM(E35:I36),0)*-1 -> 0 | L37: kr.
B38: Resterende gevinst | C38: =C34-C35-C36 -> 0 | D38: kr. | E38: =C38+E34-E35-E36 -> 1140980 | F38: kr. | G38: =E38+G34-G35-G36 -> 1140980 | H38: kr. | I38: =G38+I34-I35-I36 -> 1140980 | J38: kr. | K38: =K34-K35-K36+K37+I38 -> 1140980 | L38: kr.
